Cogmind - Beta 15 @@@ ROGUE MODE // 2025.06.14 @ 22:50:27 Player: kckn2077 Result: Destroyed by S-10 Pest with Light Assault Rifle Performance ------------- Evolutions (1) 500 Regions Visited (3) 600 Robots Destroyed (37) 185 Value Destroyed (949) 949 Prototype IDs (0) 0 Alien Tech Used (0) 0 Bonus (116) 116 TOTAL SCORE: 2350 Bonus ------- Follower Combat Kills 116 Cogmind --------- Core Integrity 0/400 Matter 300/300 Energy 92/100 System Corruption 12% Temperature Cool (27) Movement Core (250) Ox4 Location -9/Storage Parts ------- > --- POWER (1) -------- (None) > --- PROPULSION (3) --- Improved Treads > --- UTILITY (2) ------ Medium Storage Unit > --- WEAPON (3) ------- Small Laser Scythe > --- INVENTORY (10) --- Backup Power I Scythe Scythe Peak State ------------ > --- POWER ------------ Light Deuterium Engine > --- PROPULSION ------- Titanium Leg Titanium Leg Titanium Leg > --- UTILITY ---------- Small Storage Unit Weight Redist. System > --- WEAPON ----------- Scythe Scythe Scythe > --- INVENTORY -------- Light Deuterium Engine Light Deuterium Engine Titanium Leg Seismic Detector Light Cannon EMP Blaster EMP Blaster EMP Blaster [Rating: 25] Favorites ----------- Power Light Deuterium Engine Engine Light Deuterium Engine Power Core Light Nuclear Core Propulsion Titanium Leg Treads Light Treads Leg Titanium Leg Utility Small Storage Unit Device Weight Redist. System Storage Small Storage Unit Processor Signal Interpreter Protection Hardened Light Armor Plating Weapon EMP Blaster Energy Gun Medium Laser Ballistic Gun Light Assault Rifle Ballistic Cannon Light Cannon Launcher EMP Blaster Slashing Weapon Scythe Build | -11 -10 -9 -9 ------- Run | Yrd Mat Mat Sto Slots Evolved 2 | . . 2 . Power . | . . . . Propulsion 1 | . . 1 . Utility . | . . . . Weapon 1 | . . 1 . Parts Attached 37 | 6 6 14 11 Power 4 | 1 . 1 2 Engine 3 | 1 . 1 1 Core 1 | . . . 1 Reactor . | . . . . Propulsion 11 | 2 2 4 3 Treads 3 | . 2 . 1 Leg 8 | 2 . 4 2 Wheel . | . . . . Hover . | . . . . Flight . | . . . . Utility 11 | 1 2 3 5 Device 5 | . 1 1 3 Storage 4 | 1 1 . 2 Processor 1 | . . 1 . Hackware . | . . . . Protection 1 | . . 1 . Artifact . | . . . . Weapon 11 | 2 2 6 1 Energy Gun 2 | . 1 . 1 Energy Cannon . | . . . . Ballistic Gun 2 | 2 . . . Ballistic Cannon 1 | . 1 . . Launcher 3 | . . 3 . Special Weapon . | . . . . Impact Weapon . | . . . . Slashing Weapon 3 | . . 3 . Piercing Weapon . | . . . . Special Melee Weapon . | . . . . Unidentified Prototypes . | . . . . Parts Lost 11 | . . . 11 Power 3 | . . . 3 Propulsion 5 | . . . 5 Utility 1 | . . . 1 Weapon 2 | . . . 2 Highest Loss Streak 6 | . . . 6 To Critical Strikes . | . . . . Average Backups 7 | 4 6 7 6 Power 2 | 1 . 2 2 Propulsion 1 | 1 2 1 1 Utility . | . . . . Weapon 3 | 1 3 3 2 Tool/Special . | . . . . Unused Backups 9 | . 2 4 3 Power 3 | . . 1 2 Propulsion 3 | . . 2 1 Utility 1 | . 1 . . Weapon 2 | . 1 1 . Tool/Special . | . . . . Average Slot Usage (%) 91 | . 87 99 85 Engine 11 | . 14 11 9 Treads 3 | . 9 1 2 Leg 27 | . 18 31 28 Device 2 | . 1 1 2 Storage 11 | . 14 11 10 Processor 5 | . . 6 7 Protection 1 | . . 3 . Energy Gun 1 | . 7 . . Ballistic Gun 3 | . 13 . . Ballistic Cannon 6 | . 7 6 5 Launcher 8 | . . 16 5 Slashing Weapon 7 | . . 10 10 Peak Build Rating 25 | 6 9 25 23 Average Rating 16 | 3 6 21 18 On Entrance 9 | . 6 9 21 Naked Turns . | . . . . Heaviest Build 25 | 12 15 25 25 Greatest Support 57 | 20 46 57 51 Greatest Overweight (x) 4 | . . . 4 Average Overweight (x) . | . . . . Largest Inventory Capacity 20 | 8 20 8 10 Average Capacity 8 | 7 8 8 9 Most Carried 10 | 8 8 8 10 Average Carried 7 | 4 6 7 6 Final Capacity 10 | 8 8 8 10 Final Carried 8 | 4 8 8 3 Class Distribution -------------------- 95% | Mutant 4% | Commander-Mutant Dominant Class ---------------- Mutant | -10/Materials Mutant | -9/Materials Mutant | -9/Storage Resources | -11 -10 -9 -9 ----------- Run | Yrd Mat Mat Sto Matter Collected 962 | 243 133 424 162 Remotely . | . . . . Salvage Created 1462 | . 307 776 379 Parts 87 | . 15 46 26 Haulers Intercepted 3 | . 1 1 1 Recyclers Shooed . | . . . . Parts Field Recycled . | . . . . Retrieved Matter . | . . . . Parts Self-Destructed . | . . . . Prevented . | . . . . Kills | -11 -10 -9 -9 ------- Run | Yrd Mat Mat Sto Combat Hostiles Destroyed 24 | . 5 11 8 Melee 8 | . . 2 6 Guns 4 | . 3 . 1 Cannons 7 | . 2 4 1 AOE 5 | . . 5 . Classes Destroyed 11 | . 5 4 2 Worker 1 | . . 1 . Builder 3 | . . 3 . Hauler 3 | . 1 1 1 Recycler 4 | . 2 2 . Operator 1 | . . 1 . Watcher 1 | . 1 . . Swarmer 7 | . 3 3 1 Grunt 11 | . 2 6 3 Duelist 2 | . . 2 . Protector 1 | . . . 1 Sentry 3 | . . . 3 Best Kill Streak 14 | . 3 14 1 Combat Bots Only 10 | . 2 10 1 Max Kills in Single Turn 2 | . 1 2 1 Gunslinging . | . . . . Exploded 1 | . . 1 . Melee 1 | . . 1 1 Uniques/NPCs Destroyed . | . . . . Combat | -11 -10 -9 -9 -------- Run | Yrd Mat Mat Sto Hostile Shots Fired 184 | . 33 31 120 Missed 43 | . 8 7 28 Hits 141 | . 25 24 92 Melee 8 | . . 5 3 Projectile 133 | . 25 19 89 Critical Strikes 6 | . 1 1 4 Damage Taken 2208 | . 281 404 1523 Core 442 | . 37 68 337 Absorbed by Shields . | . . . . Core Remaining (%) 92 | 100 85 . . Volleys Fired 69 | . 30 24 15 Largest 2 | . 2 2 2 Hottest 80 | . 80 66 66 Shots Fired 114 | . 60 35 19 Gun 49 | . 42 . 7 Cannon 40 | . 18 17 5 Launcher 25 | . . 18 7 Special . | . . . . Kinetic 64 | . 42 17 5 Thermal 25 | . 18 . 7 Explosive . | . . . . Electromagnetic 25 | . . 18 7 Robot Hit Streak 16 | . 16 4 3 Robot Miss Streak 4 | . 4 3 4 Penetration Max . | . . . . Secondary Targets . | . . . . Shots Hit Robots 80 | . 38 21 21 Core Hits 46 | . 14 22 10 Critical Kills . | . . . . Critical Parts Destroyed . | . . . . Critical Strikes 4 | . 2 1 1 Burn 1 | . 1 . . Blast 2 | . 1 . 1 Sever 1 | . . 1 . Melee Attacks 52 | . . 13 39 Impact . | . . . . Slashing 52 | . . 13 39 Piercing . | . . . . Sneak Attacks 4 | . . 2 2 Combat Hostiles 1 | . . 1 . Follow-up Attacks . | . . . . Damage Inflicted 1973 | . 481 834 658 Guns 276 | . 255 . 21 Cannons 419 | . 226 154 39 Explosions 465 | . . 393 72 Melee 813 | . . 287 526 Ramming . | . . . . Kinetic 525 | . 332 154 39 Thermal 170 | . 149 . 21 Explosive . | . . . . Electromagnetic 465 | . . 393 72 Impact . | . . . . Slashing 813 | . . 287 526 Piercing . | . . . . Highest Corruption 12 | . . 2 12 Average Corruption 1 | . . 1 2 Corruption Purged . | . . . . Corruption Blocked . | . . . . Effects 14 | . . 8 6 Message Errors 2 | . . 2 . Matter Fused 4 | . . 4 . Energy Discharges 1 | . . 1 . Parts Rejected 1 | . . . 1 Parts Fused 1 | . . . 1 Data Loss (minor) 4 | . . . 4 Misfires 1 | . . 1 . Overload Shots . | . . . . Overflow Damage 92 | . . 25 67 Projectiles . | . . . . Explosions . | . . . . Melee 92 | . . 25 67 Knockbacks 6 | . 6 . . Impact . | . . . . Kinetic 6 | . 6 . . Secondary . | . . . . Self-Inflicted Damage 84 | . . 49 35 Shots 9 | . . 5 4 Rammed . | . . . . Targets Rammed . | . . . . Kicked . | . . . . Crushed . | . . . . Highest Temperature 178 | . 178 12 20 Average Temperature 62 | . 82 5 10 Received Heat Transfer 648 | . 144 78 426 Siege Activations . | . . . . Martial Activations . | . . . . Shielding Activations . | . . . . Robots Disrupted . | . . . . Combat Hostiles . | . . . . Robots Corrupted . | . . . . Combat Hostiles . | . . . . Parts Fried 3 | . . 3 . Impact Corruptions . | . . . . Robots Melted . | . . . . Combat Hostiles . | . . . . Parts Melted . | . . . . Heat Transferred 568 | . 518 . 50 Parts Sabotaged . | . . . . Parts Stolen . | . . . . Parts Stripped . | . . . . Power Chain Reactions 6 | . . 6 . Alert | -11 -10 -9 -9 ------- Run | Yrd Mat Mat Sto Maximum Alert Level 1 | . . 1 1 Low Security (%) 86 | 100 100 71 93 Level 1 13 | . . 28 6 Level 2 . | . . . . Level 3 . | . . . . Level 4 . | . . . . Level 5 . | . . . . High Security . | . . . . Max Security . | . . . . Peak Influence 265 | . 77 265 216 Initial 85 | . . 8 85 Average 74 | . 22 87 104 Influence Increases 1123 | . 144 395 584 Destroy 0b10 Robot/C 540 | . 100 220 220 Destroy 0b10 Robot/NC 75 | . 20 40 15 Destroy Leader 128 | . 24 42 62 Allied During Kill 40 | . . . 40 Successful Hack 7 | . . . 7 Disable Machine 90 | . . 45 45 Anti-Garrison Action 150 | . . . 150 Destroy Structure 33 | . . 18 15 Lose Combat Pursuer 60 | . . 30 30 Influence Decreases 1064 | . 123 214 727 Entered New Map 130 | . . 13 117 Time Decay 594 | . 123 201 270 Lost Part 110 | . . . 110 Lost Ally 230 | . . . 230 Squads Dispatched 4 | . . 1 3 Investigation 2 | . . 1 1 Extermination . | . . . . Reinforcement . | . . . . Assault 2 | . . . 2 Garrison . | . . . . Intercept . | . . . . Searches Triggered . | . . . . Construction Impeded . | . . . . Haulers Reinforced . | . . . . Active Scanning Responses . | . . . . Cargo Convoy Interrupts . | . . . . Stealth | -11 -10 -9 -9 --------- Run | Yrd Mat Mat Sto Distress Signals 3 | . 2 . 1 Communications Jammed . | . . . . Distress Signals . | . . . . Times Spotted 48 | . 9 16 23 Peak Tracking Total 9 | . 3 3 9 Tactical Retreats 4 | . . 2 2 Traps | -11 -10 -9 -9 ------- Run | Yrd Mat Mat Sto Traps Triggered 1 | . . 1 . Indirectly . | . . . . Trap Hack Attempts . | . . . . Triggered . | . . . . Disarmed . | . . . . Reprogrammed . | . . . . Reused . | . . . . Traps Extracted . | . . . . Installed . | . . . . Triggered . | . . . . Machines | -11 -10 -9 -9 ---------- Run | Yrd Mat Mat Sto Machines Disabled 7 | . . 3 4 Max in Single Turn 3 | . . 1 3 Garrison Access 1 | . . . 1 Machines Repaired . | . . . . Machines Dismantled . | . . . . Machines Sabotaged . | . . . . Overloaded Fab Kills . | . . . . Hacking | -11 -10 -9 -9 --------- Run | Yrd Mat Mat Sto Machines Accessed 6 | . . 3 3 Terminals 4 | . . 2 2 Fabricators . | . . . . Repair Stations 2 | . . 1 1 Recycling Units . | . . . . Scanalyzers . | . . . . Garrison Access . | . . . . Total Hacks 17 | . . 9 8 Successful 10 | . . 6 4 Failed 7 | . . 3 4 Catastrophic . | . . . . Database Lockouts . | . . . . Manual . | . . . . Terminals 10 | . . 5 5 Fabricators . | . . . . Repair Stations 7 | . . 4 3 Recycling Units . | . . . . Scanalyzers . | . . . . Garrison Access . | . . . . Terminal Hacks 7 | . . 4 3 Record 1 | . . 1 . Open Door 1 | . . . 1 Alert Level 1 | . . 1 . Locate Traps 2 | . . 1 1 Patrol Status 1 | . . . 1 Hauler Manifests 1 | . . 1 . Fabricator Hacks . | . . . . Repair Station Hacks 3 | . . 2 1 Scan Component 2 | . . 1 1 Repair 1 | . . 1 . Recycling Unit Hacks . | . . . . Scanalyzer . | . . . . Garrison Access Hacks . | . . . . Unauthorized Hacks . | . . . . Terminals . | . . . . Fabricators . | . . . . Repair Stations . | . . . . Recycling Units . | . . . . Scanalyzers . | . . . . Garrison Access . | . . . . Data Cores Recovered . | . . . . Used . | . . . . Hacking Detections 4 | . . 2 2 Full Trace Events 2 | . . 1 1 Feedback Events . | . . . . Feedback Blocked . | . . . . Robot Schematics Acquired . | . . . . Robots Built . | . . . . Authchips . | . . . . Time . | . . . . Total Robot Build Rating . | . . . . Part Schematics Acquired . | . . . . Parts Built . | . . . . Authchips . | . . . . Time . | . . . . Total Part Build Rating . | . . . . Parts Repaired . | . . . . Time 32 | . . 32 . Parts Recycled . | . . . . Recycled Matter . | . . . . Retrieved Matter . | . . . . Retrieved Components . | . . . . Parts Scanalyzed . | . . . . Part Schematics Acquired . | . . . . Parts Damaged . | . . . . Bothacking | -11 -10 -9 -9 ------------ Run | Yrd Mat Mat Sto Used RIF Installer . | . . . . Robots Hacked . | . . . . Non-combat . | . . . . Combat . | . . . . Robot Hacks Applied . | . . . . Relay Couplers Released 3 | . . . 3 Machine Destruction 3 | . . . 3 Fabnet Peak Effective % . | . . . . Robots Rewired . | . . . . Allies Hacked . | . . . . Hacks Repelled . | . . . . Allies | -11 -10 -9 -9 -------- Run | Yrd Mat Mat Sto Total Allies 10 | . . . 10 Largest Group 10 | . . . 10 Highest-Rated Group 88 | . . . 88 Highest-Rated Ally 16 | . . . 16 Total Orders . | . . . . Ally Attacks 41 | . . . 41 Total Damage 314 | . . . 314 Kills 4 | . . . 4 Allies Corrupted 4 | . . . 4 Allies Melted . | . . . . Intel | -11 -10 -9 -9 ------- Run | Yrd Mat Mat Sto Active Infowar (turns) 28 | . . 28 . Seismic 28 | . . 28 . Robot Analysis Total . | . . . . Derelict Logs Recovered . | . . . . Drone Launches 4 | . . . 4 Drone Recoveries 1 | . . . 1 Exploration | -11 -10 -9 -9 ------------- Run | Yrd Mat Mat Sto Turns Passed 1836 | 70 431 742 593 Spaces Moved 968 | 50 240 400 278 Core 9 | 8 . . 1 Treads 104 | . 75 8 21 Legs 855 | 42 165 392 256 Wheels . | . . . . Hover . | . . . . Flight . | . . . . Fastest Speed 50 | 50 120 130 120 Average Speed 131 | 108 132 130 135 Slowest Speed 250 | 120 160 160 250 Overloaded Moves . | . . . . Propulsion Burnouts . | . . . . Robots Hopped . | . . . . Potential Cave-ins . | . . . . Cave-ins Triggered 1 | . . . 1 Exploration Rate (%) 30 | 3 39 38 42 Regions Visited 3 Branch Regions 1 Pre-discovered Areas . | . . . . Known Exits Taken 1 | . . 1 . Unknown Exits Taken 2 | 1 1 . . Scrap Searched . | . . . . Spaces Dug 16 | . . 1 15 Terrain Destroyed 33 | . . 18 15 Melee 16 | . . 1 15 Projectile . | . . . . AOE 17 | . . 17 . Terrain Rammed . | . . . . Walls Destroyed . | . . . . Machines Disabled . | . . . . Actions | -11 -10 -9 -9 --------- Run | Yrd Mat Mat Sto Total 1349 | 65 297 570 417 Wait 147 | . 6 82 59 Move 965 | 49 239 399 278 Hop . | . . . . Pick Up 44 | 10 10 15 9 Fast Attach 8 | . 3 5 . Attach 18 | 6 . 4 8 Detach . | . . . . Swap 21 | . 4 11 6 Drop 25 | . 5 17 3 Fire 69 | . 30 24 15 Melee 52 | . . 13 39 Ram . | . . . . Kick . | . . . . Crush . | . . . . Escape Stasis . | . . . . Rewire . | . . . . Trap . | . . . . Miscellaneous . | . . . . Route ------- -11/Scrapyard -10/Materials -9/Materials -9/Storage History --------- Turn | Location | Event 12 | -11/Scrapyard | Discovered new exit (range 16) 71 | -11/Scrapyard | Entered Materials 314 | -10/Materials | Build established: Mutant 446 | -10/Materials | Discovered new exit (range 4) 502 | -10/Materials | Entered another Materials area 502 | -9/Materials | Evolved 2 slots: Propulsion x1, Weapon x1 1062 | -9/Materials | Destroyed 10 combat bots 1106 | -9/Materials | Discovered new exit (range 13) 1243 | -9/Materials | Identified exit to Storage 1244 | -9/Materials | Entered Storage 1717 | -9/Storage | Lost 3 allies 1727 | -9/Storage | Core integrity fell below 50% 1743 | -9/Storage | Assisted by bots powering up and referring to "LRC-V3" 1832 | -9/Storage | Crushed by falling debris 1832 | -9/Storage | Core integrity fell below 20% 1832 | -9/Storage | System corruption reached 10% 1837 | -9/Storage | Destroyed by S-10 Pest with Light Assault Rifle Last Messages --------------- Dropped Drone Bay. Mercenary 2i suffers critical hit (Burn). Mercenary 2i destroyed. Acquired Sml. Laser. Titanium Leg destroyed. S-10 Pest destroyed. Acquired 14 matter. The unstable cave ceiling collapses. Crushed by falling debris. [Achievement: Unlikely Earthworm] Aluminum Leg destroyed. System corrupted by crushing effect (+2). Heat Sink destroyed. System corrupted by crushing effect (+5). Lgt. Nuclear Core destroyed. System corrupted by crushing effect (+2). Aluminum Leg destroyed. System corrupted by crushing effect (+1). Aluminum Leg crushed. Critical hit (Burn: +37). Map ----- +----------------------------------------------------+ | ???# ##! !" / ?????? #??? | | ???# ##! !# #???????# #??? | | ???# ##! !# % ]#???????# #??? | | ???# ######]! % #???????# #??? | | ???# #????# #####???# #??? | | ???# #########/### ##### #??? | | ???# T !![#??? | | ???# #### #####!#??? | | ???# """ #??#####???#%#??? | | ???#^ """ +??????????#!#??? | | ???# """ """#??????????#[#??? | | ???# Y"#??????????#!#??? | | ?? """#??????????# #??? | | ? +??????????# #??? | | ? #??????????# #??? | | ?########+###+#??????????# #??? | | ?????????????????????????# #??? | | ???????????????###???????# #??? | | ???????????????# ??????# #??? | | ???????????????# ??????# #??? | | ????????????????**[ ??#### #??? | | ?????????????????*[ ??#!= #??? | | ?????????????????? !%?#%######? | | ???????????????????#+##%##= #? | | ???????????????????# %%Ys[ #? | | ???????????????????# %!#@% #? | | ???????????????????# %[#s #? | | ????????????? *%## #? | | ????????????##################? | | ??????????????????????????????? | | ??????????????????????????????? | | ??????????????????????????????? | | ??????????????????????????????? | | ??????????????????????????????? | | | | | | | | | | | | | | | | | | | | | | | | | | | | | | | | | +----------------------------------------------------+ Best States ------------- Heat Dissipation 38 Energy Generation 14 Energy Capacity 250 Matter Stores 300 Matter Capacity 300 Sight Range 16 Terrain Scan Density 10 Additional Mass Support 6 Armor Coverage 150 Evasion (%) 55 Recoil Reduction 2 Item Schematics ----------------- None Robot Schematics ------------------ None Fabricated ------------ Nothing Repaired ---------- Nothing Alien Tech Used ----------------- None Achievements -------------- Part-time Excavator Shopping List Unlikely Earthworm Challenges ------------ None Game ------ Seed PrecisionPoweredMultirail Manual? 0 Play Time 00:32:30 Cumulative 2.8 hours Start 2025.06.14 @ 22:16:34 End 2025.06.14 @ 22:50:27 Sessions 1 Manual Loads 0 Difficulty Rogue Special Mode None Game No. 4 Rogue 4 Adventurer 0 Explorer 0 Win Type - Total 0 Types 0/0/0/0/0/0/0/0/0/0 Lore% 2 Gallery% 7 Achievement% 11 Wizard Run 0 Options --------- Layout 1 ASCII 0 Keyboard 0 Movement Mouse Keybinds 0 Fullscreen 1 Font 32/Smallcaps Map View 50x35 Zoom Use 0% Tactical HUD 0 Map Filters NONE Filters NONE Steam 1 RUN: 9f366774-4d53-44ef-83aa-44a566d99968